Cogmind - Beta 9.2 @@@ ROGUE MODE // 2019.11.16 @ 14:52:03 Player: Fleshy Vegetable Bird Result: Destroyed by Y-45 Defender with Heavy Assault Rifle Performance ------------- Evolutions (1) 500 Regions Visited (2) 400 Robots Destroyed (7) 35 Value Destroyed (178) 178 Prototype IDs (0) 0 Alien Tech Used (0) 0 Bonus (0) 0 TOTAL SCORE: 1113 Bonus ------- None Cogmind --------- Core Integrity 0/400 Matter 243/300 Energy 100/100 System Corruption 0% Temperature Cool (0) Movement Core (50) Location -9/Materials Parts ------- > --- POWER (1) -------- (None) > --- PROPULSION (2) --- (None) > --- UTILITY (4) ------ Hacking Suite > --- WEAPON (2) ------- (None) > --- INVENTORY (4) ---- Cesium-ion Thruster Cesium-ion Thruster Cesium-ion Thruster Cesium-ion Thruster Peak State ------------ > --- POWER ------------ (None) > --- PROPULSION ------- (None) > --- UTILITY ---------- Hacking Suite > --- WEAPON ----------- (None) > --- INVENTORY -------- Cesium-ion Thruster Cesium-ion Thruster Cesium-ion Thruster Cesium-ion Thruster [Rating: 4] Favorites ----------- Power None Propulsion Wheel Wheel Wheel Utility Hacking Suite Hackware Hacking Suite Weapon EM Pulse Gun Energy Gun EM Pulse Gun Launcher Grenade Launcher Special Weapon Mining Laser Build | -11 -10 -9 ------- Run | Scr Mat Mat Slots Evolved 2 | . . 2 Power . | . . . Propulsion . | . . . Utility 2 | . . 2 Weapon . | . . . Parts Attached 5 | 1 1 3 Power . | . . . Engine . | . . . Core . | . . . Reactor . | . . . Propulsion 1 | . . 1 Treads . | . . . Leg . | . . . Wheel 1 | . . 1 Hover . | . . . Flight . | . . . Utility 1 | . . 1 Device . | . . . Storage . | . . . Processor . | . . . Hackware 1 | . . 1 Protection . | . . . Artifact . | . . . Weapon 3 | 1 1 1 Energy Gun 1 | 1 . . Energy Cannon . | . . . Ballistic Gun . | . . . Ballistic Cannon . | . . . Launcher 1 | . . 1 Special Weapon 1 | . 1 . Impact Weapon . | . . . Slashing Weapon . | . . . Piercing Weapon . | . . . Special Melee Weapon . | . . . Unidentified Prototypes . | . . . Parts Lost 2 | . . 2 Power . | . . . Propulsion . | . . . Utility . | . . . Weapon 2 | . . 2 Highest Loss Streak 1 | . . 1 Average Slot Usage (%) 16 | . 20 6 Energy Gun 10 | . 14 1 Special Weapon 4 | . 6 . Naked Turns 52 | . . 52 Heaviest Build 3 | 2 3 3 Greatest Support 10 | 3 3 10 Greatest Overweight (x) . | . . . Average Overweight (x) . | . . . Largest Inventory Capacity 4 | 4 4 4 Average Capacity 4 | 4 4 4 Most Carried 4 | 4 4 4 Average Carried 3 | 3 3 3 Final Capacity 4 | 4 4 4 Final Carried 4 | 3 4 4 Class Distribution -------------------- 100% | Mutant Dominant Class ---------------- Mutant | -10/Materials Mutant | -9/Materials Resources | -11 -10 -9 ----------- Run | Scr Mat Mat Matter Collected 238 | 131 37 70 Remotely . | . . . Salvage Created 206 | . 37 169 Parts 17 | . 5 12 Haulers Intercepted . | . . . Recyclers Shooed . | . . . Parts Field Recycled . | . . . Retrieved Matter . | . . . Parts Self-Destructed . | . . . Prevented . | . . . Kills | -11 -10 -9 ------- Run | Scr Mat Mat Combat Hostiles Destroyed 4 | . . 4 AOE 4 | . . 4 Classes Destroyed 4 | . 2 2 Tunneler 1 | . 1 . Recycler 1 | . . 1 Operator 1 | . 1 . Grunt 4 | . . 4 Best Kill Streak 4 | . 1 4 Combat Bots Only 3 | . . 3 Max Kills in Single Turn 2 | . 1 2 Gunslinging . | . . . Exploded 1 | . . 1 Melee . | . . . Uniques/NPCs Destroyed . | . . . Combat | -11 -10 -9 -------- Run | Scr Mat Mat Damage Taken 586 | . 73 513 Core 474 | . 61 413 Absorbed by Shields . | . . . Core Remaining (%) 87 | 100 75 . Volleys Fired 22 | . 13 9 Largest 1 | . 1 1 Hottest 100 | . 100 40 Shots Fired 22 | . 13 9 Gun 10 | . 7 3 Cannon . | . . . Launcher 6 | . . 6 Special 6 | . 6 . Kinetic . | . . . Thermal 6 | . 6 . Explosive 6 | . . 6 Electromagnetic 10 | . 7 3 Robot Hit Streak 5 | . 3 5 Robot Miss Streak 3 | . 3 1 Penetration Max . | . . . Secondary Targets . | . . . Shots Hit Robots 10 | . 4 6 Core Hits 11 | . 3 8 Critical Hits . | . . . Critical Kills . | . . . Critical Parts Destroyed . | . . . Melee Attacks . | . . . Impact . | . . . Slashing . | . . . Piercing . | . . . Sneak Attacks . | . . . Combat Hostiles . | . . . Follow-up Attacks . | . . . Damage Inflicted 485 | . 108 377 Guns 112 | . 88 24 Cannons . | . . . Explosions 373 | . 20 353 Melee . | . . . Ramming . | . . . Kinetic . | . . . Thermal 20 | . 20 . Explosive 353 | . . 353 Electromagnetic 112 | . 88 24 Impact . | . . . Slashing . | . . . Piercing . | . . . Highest Corruption . | . . . Average Corruption . | . . . Corruption Purged . | . . . Overload Shots . | . . . Overflow Damage . | . . . Projectiles . | . . . Explosions . | . . . Melee . | . . . Knockbacks . | . . . Impact . | . . . Kinetic . | . . . Secondary . | . . . Self-Inflicted Damage 58 | . . 58 Shots 2 | . . 2 Rammed 1 | . . 1 Targets Rammed 1 | . . 1 Kicked . | . . . Crushed . | . . . Highest Temperature 12 | . 1 12 Average Temperature 6 | . 1 7 Received Heat Transfer 156 | . 6 150 Siege Activations . | . . . Robots Corrupted . | . . . Combat Hostiles . | . . . Parts Fried 1 | . 1 . Impact Corruptions . | . . . Robots Melted . | . . . Combat Hostiles . | . . . Parts Melted . | . . . Heat Transferred 50 | . 50 . Parts Sabotaged . | . . . Parts Stolen . | . . . Parts Stripped . | . . . Power Chain Reactions 1 | . 1 . Missiles Intercepted . | . . . Alert | -11 -10 -9 ------- Run | Scr Mat Mat Peak Influence 155 | . 119 155 Average Influence 72 | . 68 100 Maximum Alert Level . | . . . Low Security (%) 100 | 100 100 100 Level 1 . | . . . Level 2 . | . . . Level 3 . | . . . Level 4 . | . . . Level 5 . | . . . High Security . | . . . Max Security . | . . . Squads Dispatched 4 | . 1 3 Investigation . | . . . Extermination . | . . . Reinforcement 4 | . 1 3 Assault . | . . . Garrison . | . . . Intercept . | . . . Construction Impeded . | . . . Haulers Reinforced . | . . . Stealth | -11 -10 -9 --------- Run | Scr Mat Mat Distress Signals 3 | . . 3 Communications Jammed . | . . . Distress Signals . | . . . Times Spotted 27 | . 9 18 Peak Tracking Total 13 | . 4 13 Tactical Retreats 1 | . 1 . Traps | -11 -10 -9 ------- Run | Scr Mat Mat Traps Triggered . | . . . Indirectly . | . . . Trap Hack Attempts . | . . . Triggered . | . . . Disarmed . | . . . Reprogrammed . | . . . Reused . | . . . Traps Extracted . | . . . Installed . | . . . Triggered . | . . . Machines | -11 -10 -9 ---------- Run | Scr Mat Mat Machines Disabled . | . . . Max in Single Turn . | . . . Machines Sabotaged . | . . . Garrisons Compromised . | . . . Overloaded Fab Kills . | . . . Fab Network Shutdowns . | . . . Hacking | -11 -10 -9 --------- Run | Scr Mat Mat Machines Accessed 7 | . 5 2 Terminals 7 | . 5 2 Fabricators . | . . . Repair Stations . | . . . Recycling Units . | . . . Scanalyzers . | . . . Garrison Access . | . . . Total Hacks 26 | . 19 7 Successful 19 | . 15 4 Failed 7 | . 4 3 Catastrophic . | . . . Database Lockouts . | . . . Manual 20 | . 16 4 Terminals 26 | . 19 7 Fabricators . | . . . Repair Stations . | . . . Recycling Units . | . . . Scanalyzers . | . . . Garrison Access . | . . . Terminal Hacks 6 | . 4 2 Terminal Index 2 | . 1 1 Locate Traps 1 | . 1 . Zone Layout 3 | . 2 1 Fabricator Hacks . | . . . Repair Station Hacks . | . . . Recycling Unit Hacks . | . . . Scanalyzer . | . . . Garrison Access Hacks . | . . . Unauthorized Hacks 29 | . 24 5 Terminals 13 | . 11 2 Track 3 | . 3 . Assimilate 2 | . 2 . Botnet 6 | . 5 1 Operators 2 | . 1 1 Fabricators . | . . . Repair Stations . | . . . Recycling Units . | . . . Scanalyzers . | . . . Garrison Access . | . . . Data Cores Recovered . | . . . Used . | . . . Hacking Detections 7 | . 5 2 Full Trace Events . | . . . Feedback Events . | . . . Feedback Blocked . | . . . Robot Schematics Acquired . | . . . Robots Built . | . . . Matter . | . . . Time . | . . . Total Robot Build Rating . | . . . Part Schematics Acquired . | . . . Parts Built . | . . . Matter . | . . . Time . | . . . Total Part Build Rating . | . . . Parts Repaired . | . . . Time . | . . . Parts Recycled . | . . . Recycled Matter . | . . . Retrieved Matter . | . . . Retrieved Components . | . . . Parts Scanalyzed . | . . . Part Schematics Acquired . | . . . Parts Damaged . | . . . Bothacking | -11 -10 -9 ------------ Run | Scr Mat Mat Used RIF Installer . | . . . Robots Hacked . | . . . Non-combat . | . . . Combat . | . . . Robot Hacks Applied . | . . . Relay Couplers Released . | . . . Robots Rewired . | . . . Allies Hacked . | . . . Hacks Repelled . | . . . Allies | -11 -10 -9 -------- Run | Scr Mat Mat Total Allies 1 | . 1 . Largest Group 1 | . 1 1 Highest-Rated Group 10 | . 10 10 Highest-Rated Ally 10 | . 10 10 Total Orders . | . . . Ally Attacks . | . . . Total Damage . | . . . Kills . | . . . Allies Corrupted . | . . . Allies Melted . | . . . Intel | -11 -10 -9 ------- Run | Scr Mat Mat Robot Analysis Total . | . . . Derelict Logs Recovered . | . . . Drone Launches . | . . . Drone Recoveries . | . . . Exploration | -11 -10 -9 ------------- Run | Scr Mat Mat Turns Passed 506 | 21 366 119 Spaces Moved 545 | 32 344 169 Core 537 | 32 344 161 Treads . | . . . Legs . | . . . Wheels 8 | . . 8 Hover . | . . . Flight . | . . . Fastest Speed 50 | 50 50 50 Average Speed 50 | 50 50 51 Slowest Speed 80 | 50 50 80 Overloaded Moves . | . . . Propulsion Burnouts . | . . . Robots Hopped . | . . . Cave-ins Triggered 1 | . 1 . Exploration Rate (%) 27 | 3 56 22 Regions Visited 2 Branch Regions . Pre-discovered Areas . | . . . Known Exits Taken . | . . . Unknown Exits Taken 2 | 1 1 . Scrap Searched . | . . . Spaces Dug 6 | . 6 . Terrain Destroyed 48 | . 8 40 Melee . | . . . Projectile 6 | . 6 . AOE 42 | . 2 40 Actions | -11 -10 -9 --------- Run | Scr Mat Mat Total 743 | 36 513 194 Wait 151 | . 150 1 Move 543 | 31 343 169 Hop . | . . . Pick Up 13 | 4 3 6 Fast Attach . | . . . Attach 5 | 1 1 3 Detach 2 | . 1 1 Swap . | . . . Drop 6 | . 2 4 Fire 22 | . 13 9 Melee . | . . . Ram 1 | . . 1 Kick . | . . . Crush . | . . . Escape Stasis . | . . . Rewire . | . . . Trap . | . . . Miscellaneous . | . . . Route ------- -11/Scrapyard -10/Materials (discovered 3 exits: *Mat x3) -9/Materials History --------- Turn | Location | Event 13 | -11/Scrapyard | Discovered new exit (range 16) 22 | -11/Scrapyard | Entered Materials 68 | -10/Materials | Discovered new exit (range 13) 87 | -10/Materials | Discovered new exit (range 15) 118 | -10/Materials | Crushed by falling debris 257 | -10/Materials | Discovered new exit (range 16) 316 | -10/Materials | Build established: Mutant 388 | -10/Materials | Entered another Materials area 388 | -9/Materials | Accompanied by 1 ally 388 | -9/Materials | Evolved 2 slots: Utility x2 472 | -9/Materials | Core integrity fell below 50% 500 | -9/Materials | Core integrity fell below 20% 507 | -9/Materials | Destroyed by Y-45 Defender with Heavy Assault Rifle Last Messages --------------- 00464_ U-05 Engineer builds a Wall. 00465_ U-05 Engineer lays Concrete. 00471_ G-34 Mercenary destroyed. 00476_ Grenade Launcher destroyed. 00477_ ALERT: Hostiles spotted, dispatching reinforcements to Terminal M002. 00479_ ALERT: Hostiles spotted, dispatching reinforcements to Terminal M006. 00486_ O-16 Technician: "IFF HANDSHAKE FAILED. SECURING TERMINAL." 00488_ O-16 Technician sends out distress signal. 00491_ T-07 Excavator is excavating. 00492_ Dropped Wheel. 00492_ Dropped Mining Laser. 00493_ Dropped Lrg. Storage Unit. 00493_ Acquired Cesium-ion Thruster. 00494_ ALERT: Hostiles spotted, dispatching reinforcements to Terminal M008. 00495_ T-07 Excavator is excavating. 00496_ Acquired Cesium-ion Thruster. 00500_ T-07 Excavator is excavating. Map ----- +----------------------------------------------------+ | ??????????????????????????????????????????? | | ??????????????????????????????????????????? | | ??????????????????????????????????????????? | | ??????????????????????????????????????????? | | ???????????????????o??????????????????????? | | ??????????????????????????????????????????? | | ??????????????????????????????????????????? | | ??????????????????????????????????????????? | | ??????????????????????????????????????????? | | ??????????????????????????????????????????? | | ???????????????????? ?????????????????????? | | ???????????????????? k????????????????????? | | ??????????????????? ????????????????????? | | ??????????????????? #????????????????????? | | ??????????????????? #????????????????????? | | ??????????????????" #????????????????????? | | ?????????????????"" ##???????????????????? | | ??????????????? "#???????????????????? | | ??????????????? T????????????????????? | | ???????????????"""" "????????????????????? | | ????????????????""" #??????????????????? | | ????????????????""" ###????????????????# | | ????????????????? +????????????????# | | ????????????????? #????????????????# | | ?????????????????# #####????????????# | | ?????????????????#@ ??????? | | ?????????????????# ######?????????????? | | ?????????????????# #??????????????????? | | ?????????????????# #??????????????????? | | ?????????????????# #???????????????????# | | ?????????????????# #??????????????????## | | ?????????????????# +??????????????????# | | ?????????????????# #??????????????????# | | ?????????????????# t #??????????????????# | | ?????????????????# #??????????????????# | | ?????????????##### #?????????########### | | ?????????????#** s ###???????# = | | ?????????????#** # #???????# """ "" | | ?????????????# ! #???????# """ """ | | ?????????????# = # #???????# """ S" | | ?????????????#!!| s s###???????# | | ?????????????#!! ################+##### | | ?????????????##### | | ?????????????????# | | ?????????????????# | | ?????????????????# #################### | | ?????????????????# #??????????????????# | | ?????????????????# #??????????????????# | | ?????????????????# #??????????????????# | | ????????????????? ??????????????????# | +----------------------------------------------------+ Best States ------------- Heat Dissipation 28 Energy Generation 5 Energy Capacity 100 Matter Stores 278 Matter Capacity 300 Sight Range 16 Terrain Scan Density 10 Evasion (%) 50 Offensive Hacking 10 Item Schematics ----------------- None Robot Schematics ------------------ None Fabricated ------------ Nothing Alien Tech Used ----------------- None Achievements -------------- None Challenges ------------ None Game ------ Seed TrackerSurveybotRay Manual? 0 Play Time 00:16:22 Cumulative 173.5 hours Start 2019.11.15 @ 22:35:05 End 2019.11.16 @ 14:52:03 Sessions 1 Manual Loads 0 Difficulty Rogue Special Mode None Game No. 248 Rogue 248 Adventurer 0 Explorer 0 Win Type - Total 1 Types 1/0/0/0/0/0/0 Lore% 51 Gallery% 69 Achievement% 44 Wizard Run 0 Options --------- ASCII 0 Keyboard 0 Movement Numpad Keybinds 0 Fullscreen 1 Font 16/Terminus Map View 75x55 Tactical HUD 1 Map Filters NONE Filters NONE Steam 1 RUN: d5668483-21e7-467e-986d-e3dd014996fc